bitfinex/quotes_BTCUSD_20250129
["timestamp","ask_amount","ask_price","bid_price","bid_amount"]
[1738135875157,0.00129883,102600.0,102590.0,1.12072582]
[1738135875358,0.00129883,102600.0,102590.0,0.89282582]
[1738135881304,0.00129883,102600.0,102590.0,0.91582582]
[1738135885275,0.00129883,102600.0,102590.0,1.00344149]
[1738135885962,0.14749683,102600.0,102590.0,0.91582582]
[1738135887771,0.00129883,102600.0,102590.0,0.91582582]
[1738135888934,0.14749683,102600.0,102590.0,0.91582582]
[1738135892786,0.14749683,102600.0,102590.0,0.59402966]
[1738135893004,0.74386926,102600.0,102590.0,0.49649246]
[1738135893214,0.65625359,102600.0,102590.0,0.49649246]
[1738135893434,0.74386926,102600.0,102590.0,0.49649246]
[1738135894267,0.74286926,102600.0,102590.0,0.49049246]
[1738135894455,0.74286926,102600.0,102590.0,0.48749246]
[1738135894694,0.74286926,102600.0,102590.0,0.48949246]
[1738135894908,0.74286926,102600.0,102590.0,0.49049246]
[1738135896962,0.79462809,102600.0,102590.0,0.49049246]
[1738135897170,0.80425099,102600.0,102590.0,0.49049246]
[1738135897375,1.15265099,102600.0,102590.0,0.49049246]
[1738135897584,1.16265099,102600.0,102590.0,0.48884221]
[1738135897787,1.16265099,102600.0,102590.0,0.46667221]
[1738135897991,1.16265099,102600.0,102590.0,0.003]
[1738135898205,1.16265099,102600.0,102590.0,0.002]
[1738135898410,0.296227,102580.0,102570.0,5.7e-07]
[1738135898615,0.55245397,102580.0,102570.0,0.00014565]
[1738135899014,0.60235397,102580.0,102570.0,0.00014565]
[1738135899654,0.51424267,102580.0,102570.0,0.00014565]
[1738135899891,0.426627,102580.0,102570.0,0.00014565]
[1738135900914,0.427627,102580.0,102570.0,0.00014565]
[1738135901517,0.227727,102580.0,102570.0,0.00014565]
[1738135901724,0.146227,102580.0,102570.0,0.00014565]
[1738135902880,0.23384267,102580.0,102570.0,0.00014565]
[1738135903228,0.23484267,102580.0,102570.0,0.00014565]
[1738135903834,0.64474267,102580.0,102570.0,0.00014565]
[1738135905075,0.70857383,102580.0,102570.0,0.00014565]
[1738135905491,0.64474267,102580.0,102570.0,0.00014565]
[1738135908421,0.79474267,102580.0,102570.0,0.00014565]
[1738135909858,0.46634267,102580.0,102570.0,0.00014565]
[1738135910886,0.378727,102580.0,102570.0,0.00014565]
[1738135911595,0.38828476,102580.0,102570.0,0.00014565]
[1738135911801,0.47590043,102580.0,102570.0,0.00014565]
[1738135915789,0.80430043,102580.0,102570.0,0.00014565]
[1738135919841,0.48518476,102580.0,102570.0,0.00014565]
[1738135921196,0.57280043,102580.0,102570.0,0.00014565]
[1738135921612,0.65140043,102580.0,102570.0,0.00014565]
[1738135921814,0.68006108,102580.0,102570.0,0.00014565]
[1738135922244,0.83006108,102580.0,102570.0,0.00014565]
[1738135923900,0.92730424,102580.0,102570.0,0.00014565]
[1738135924100,1.06041991,102580.0,102570.0,0.00014565]
[1738135924293,0.97280424,102580.0,102570.0,0.00014565]
[1738135926100,0.99204749,102580.0,102570.0,0.00014565]
[1738135927579,0.99204749,102580.0,102570.0,0.00278933]
[1738135933292,1.07966316,102580.0,102570.0,0.00278933]
[1738135933512,0.99204749,102580.0,102570.0,0.00278933]
[1738135933676,1.07966316,102580.0,102570.0,0.00278933]
[1738135934516,0.99104749,102580.0,102570.0,0.00278933]
[1738135934958,0.99204749,102580.0,102570.0,0.00278933]
[1738135935393,0.99104749,102580.0,102570.0,0.00278933]
[1738135935728,1.08166316,102580.0,102570.0,0.00278933]
[1738135935877,1.00104749,102580.0,102570.0,0.00278933]
[1738135936967,0.99104749,102580.0,102570.0,0.00278933]
[1738135937371,1.00104749,102580.0,102570.0,0.00278933]
[1738135937827,0.99404749,102580.0,102570.0,0.00278933]
[1738135938140,0.96538684,102580.0,102570.0,0.00278933]
[1738135938303,0.96238684,102580.0,102570.0,0.00278933]
[1738135938686,0.96538684,102580.0,102570.0,0.00278933]
[1738135939351,0.97238684,102580.0,102570.0,0.00278933]
[1738135939651,0.96538684,102580.0,102570.0,0.00278933]
[1738135939807,1.0627436,102580.0,102570.0,0.00278933]
[1738135940015,1.0697436,102580.0,102570.0,0.00278933]
[1738135940556,0.97238684,102580.0,102570.0,0.00278933]
[1738135942732,0.82964368,102580.0,102570.0,0.00278933]
[1738135945026,0.85964368,102580.0,102570.0,0.00278933]
[1738135946492,0.94714216,102580.0,102570.0,0.00278933]
[1738135948485,0.61874216,102580.0,102570.0,0.00278933]
[1738135948696,0.71609892,102580.0,102570.0,0.00278933]
[1738135953159,0.61874216,102580.0,102570.0,0.00278933]
[1738135953675,0.54014216,102580.0,102570.0,0.00278933]
[1738135954273,0.54014216,102580.0,102570.0,0.00466565]
[1738135954472,0.86854216,102580.0,102570.0,0.00466565]
[1738135959614,0.28328324,102580.0,102570.0,0.05456565]
[1738135959819,0.27372548,102580.0,102570.0,0.13676565]
[1738135960637,0.27072548,102580.0,102570.0,0.13676565]
[1738135960837,0.32826093,102580.0,102570.0,0.13676565]
[1738135961245,0.32126093,102580.0,102570.0,0.13676565]
[1738135961653,0.32526093,102580.0,102570.0,0.13676565]
[1738135962291,0.32626093,102580.0,102570.0,0.13676565]
[1738135964986,0.26872548,102580.0,102570.0,0.30600665]
[1738135965155,0.12249848,102580.0,102570.0,0.40324981]
[1738135965624,0.26872548,102580.0,102570.0,0.40324981]
[1738135965869,0.12249848,102580.0,102570.0,0.40324981]
[1738135966238,0.12149848,102580.0,102570.0,0.40324981]
[1738135966444,0.03,102580.0,102570.0,0.40324981]
[1738135966619,0.031,102580.0,102570.0,0.40324981]
[1738135967048,0.03,102580.0,102570.0,0.40324981]
[1738135967258,0.08874517,102590.0,102580.0,0.215227]
[1738135967455,0.08779731,102590.0,102580.0,0.49291976]
[1738135967745,0.08779731,102590.0,102580.0,0.49721551]
[1738135968206,0.08779731,102590.0,102580.0,0.98461551]
[1738135968738,0.08879731,102590.0,102580.0,0.98461551]
[1738135969561,0.08979731,102590.0,102580.0,0.98461551]
[1738135969707,0.00229883,102590.0,102580.0,0.98461551]
[1738135969929,0.03140251,102590.0,102580.0,0.98461551]
[1738135970085,0.03040251,102590.0,102580.0,0.98461551]
[1738135971337,0.00129883,102590.0,102580.0,0.98461551]
[1738135974149,0.00114397,102590.0,102580.0,0.98461551]
[1738135975102,0.14735697,102590.0,102580.0,0.76296851]
[1738135975793,0.17644069,102590.0,102580.0,0.90919551]
[1738135977106,0.17644069,102590.0,102580.0,0.76296851]
[1738135977530,0.14735697,102590.0,102580.0,0.76300851]
[1738135977734,0.14735697,102590.0,102580.0,0.90923551]
[1738135977976,0.14735697,102590.0,102580.0,0.76300851]
[1738135979301,0.14735697,102590.0,102580.0,0.76888151]
[1738135980069,0.14735697,102590.0,102580.0,0.91510851]
[1738135980282,0.14735697,102590.0,102580.0,0.76888151]
[1738135983167,0.14735697,102590.0,102580.0,0.73573184]
[1738135983954,0.1572637,102590.0,102580.0,0.73573184]
[1738135984770,0.1572637,102590.0,102580.0,0.73711942]
[1738135984956,0.1572637,102590.0,102580.0,0.88334642]
[1738135985136,0.1572637,102590.0,102580.0,0.87582642]
[1738135985363,0.14735697,102590.0,102580.0,0.88342642]
[1738135989938,0.14735697,102590.0,102580.0,0.88350642]
[1738135990173,0.00114397,102590.0,102580.0,0.94101524]
[1738135990553,0.00114397,102590.0,102580.0,0.95633524]
[1738135990735,0.00114397,102590.0,102580.0,0.96405524]
[1738135991137,0.00114397,102590.0,102580.0,0.90654642]
[1738135992056,0.00114397,102590.0,102580.0,0.90668872]
[1738135993343,0.14735697,102590.0,102580.0,0.90668872]
[1738135993549,0.14735697,102590.0,102580.0,0.73746172]
[1738135993746,0.14735697,102590.0,102580.0,0.70161139]
[1738135994535,0.14735697,102590.0,102580.0,0.69389139]
[1738135994736,0.14735697,102590.0,102580.0,0.59664823]
[1738135994941,0.32686579,102590.0,102580.0,0.49909863]
[1738135995296,0.38437461,102590.0,102580.0,0.4976723]
[1738135995522,0.86277461,102590.0,102580.0,0.4990913]
[1738135995732,0.96001777,102590.0,102580.0,0.4990913]
[1738135995933,1.05737453,102590.0,102580.0,0.4990913]
[1738135998078,1.06610126,102590.0,102580.0,0.4990913]
[1738135998294,1.15359974,102590.0,102580.0,0.4990913]
[1738135998465,1.15759974,102590.0,102580.0,0.4990913]
[1738135998668,1.13127404,102590.0,102580.0,0.4990913]
[1738135998871,1.15047012,102590.0,102580.0,0.4990913]
[1738135999312,1.14547012,102590.0,102580.0,0.4990913]
[1738135999651,1.15547012,102590.0,102580.0,0.4990913]
[1738135999851,1.14847012,102590.0,102580.0,0.4990913]
[1738136000054,1.14547012,102590.0,102580.0,0.4990913]
[1738136000261,1.14647012,102590.0,102580.0,0.4990913]
[1738136001223,1.15047012,102590.0,102580.0,0.4990913]
[1738136002223,1.14947012,102590.0,102580.0,0.4990913]
[1738136002559,1.15247012,102590.0,102580.0,0.4990913]
[1738136002879,1.14947012,102590.0,102580.0,0.49893644]
[1738136003306,1.15047012,102590.0,102580.0,0.49893644]
[1738136007136,1.26816206,102590.0,102580.0,0.49672548]
[1738136007335,0.58385712,102590.0,102570.0,0.00014565]
[1738136007616,0.4547621,102580.0,102570.0,0.00014565]
[1738136007821,0.55211886,102580.0,102570.0,0.00014565]
[1738136008166,0.57023637,102580.0,102570.0,0.00014565]
[1738136008791,0.47287961,102580.0,102570.0,0.00014565]
[1738136008945,0.47687961,102580.0,102570.0,0.00014565]
[1738136009372,0.47787961,102580.0,102570.0,0.00014565]
[1738136009578,0.4597621,102580.0,102570.0,0.00014565]
[1738136011574,0.54726058,102580.0,102570.0,0.00014565]
[1738136011708,0.64461734,102580.0,102570.0,0.00014565]
[1738136014155,0.55711886,102580.0,102570.0,0.00014565]
[1738136014989,0.55741769,102580.0,102570.0,0.00014565]
[1738136017452,0.46006093,102580.0,102570.0,0.00014565]
[1738136017610,0.61006093,102580.0,102570.0,0.00014565]
[1738136018015,0.46006093,102580.0,102570.0,0.00014565]
[1738136018586,0.61006093,102580.0,102570.0,0.00014565]
[1738136020838,0.63748427,102580.0,102570.0,0.00014565]
[1738136021036,0.73484103,102580.0,102570.0,0.00014565]
[1738136026268,0.20381264,102560.0,102550.0,0.12373025]
[1738136026500,0.20381264,102560.0,102550.0,0.12377857]
[1738136027054,0.146255,102560.0,102550.0,0.12377857]
[1738136027462,0.146255,102560.0,102550.0,0.12477857]
[1738136031793,0.15626433,102560.0,102550.0,0.12477857]
[1738136032885,0.146255,102560.0,102550.0,0.12575365]
[1738136033123,0.146255,102560.0,102550.0,0.27202365]
[1738136033279,0.146255,102560.0,102550.0,0.27104857]
[1738136033497,0.146255,102560.0,102550.0,0.12477857]
[1738136034670,0.146255,102560.0,102550.0,0.27104857]
[1738136034834,0.146255,102560.0,102550.0,0.12477857]
[1738136036381,0.146255,102560.0,102550.0,0.27104857]
[1738136036540,0.146255,102560.0,102550.0,0.12477857]
[1738136037469,0.146255,102560.0,102550.0,0.12492087]
[1738136038369,0.01095738,102570.0,102560.0,0.272055]
[1738136038673,0.00124688,102580.0,102570.0,0.278341]
[1738136038872,0.00124688,102580.0,102570.0,0.37558416]
[1738136040373,0.14747388,102580.0,102570.0,0.37558416]
[1738136040579,0.146241,102570.0,102560.0,0.2900143]
[1738136040784,0.2339097,102570.0,102560.0,0.1053593]
[1738136040982,0.146255,102560.0,102550.0,0.00019062]
[1738136042197,0.390006,102570.0,102550.0,0.14646062]
[1738136042516,0.390006,102570.0,102550.0,0.7343026]
[1738136042517,0.536256,102570.0,102550.0,0.7343026]
[1738136042720,0.34219905,102570.0,102550.0,0.7342946]
[1738136042920,0.34219905,102570.0,102560.0,0.146255]
[1738136043130,0.34219905,102570.0,102550.0,0.73331958]
[1738136043354,0.34219905,102570.0,102550.0,0.73331658]
[1738136043505,0.34219905,102570.0,102550.0,0.73331458]
[1738136043705,0.53719605,102570.0,102550.0,0.73331458]
[1738136043905,0.53719605,102570.0,102550.0,0.73231458]
[1738136044205,0.53819605,102570.0,102550.0,0.73131458]
[1738136044524,0.73319605,102570.0,102550.0,0.73131458]
[1738136044727,0.53819505,102570.0,102550.0,0.73131458]
[1738136044953,0.53719505,102570.0,102550.0,0.73131458]
[1738136045416,0.53819505,102570.0,102550.0,0.73131458]
[1738136045798,0.34319505,102570.0,102550.0,0.73131458]
[1738136046003,0.34319505,102570.0,102560.0,0.146255]
[1738136046454,0.34319505,102570.0,102550.0,0.73131458]
[1738136047138,0.34419505,102570.0,102560.0,0.001]
[1738136047366,0.341247,102570.0,102560.0,0.001]
[1738136047496,0.341247,102570.0,102560.0,0.002]
[1738136047698,0.341247,102570.0,102560.0,0.148255]
[1738136047902,0.341247,102570.0,102560.0,0.146255]
[1738136048380,0.341247,102570.0,102550.0,0.92733158]
[1738136048891,0.341247,102570.0,102560.0,0.002]
[1738136049338,0.34154583,102570.0,102560.0,0.002]
[1738136050066,0.34154583,102570.0,102560.0,0.003]
[1738136050808,0.80015677,102570.0,102560.0,0.001]
[1738136051634,0.80015677,102570.0,102560.0,0.003]
[1738136051773,0.80015677,102570.0,102560.0,0.002]
[1738136051988,0.146255,102560.0,102550.0,0.00019062]
[1738136053406,0.2339237,102560.0,102550.0,0.00019062]
[1738136053855,0.146255,102560.0,102550.0,0.00019062]
[1738136054419,0.146255,102560.0,102550.0,0.00219062]
[1738136054619,0.146255,102560.0,102550.0,0.00319062]
[1738136056820,0.24611289,102560.0,102550.0,0.00319062]
[1738136057031,0.32651289,102560.0,102550.0,0.00319062]
[1738136057813,0.226655,102560.0,102550.0,0.00319062]
[1738136060732,0.256655,102560.0,102550.0,0.00319062]
[1738136061082,0.176255,102560.0,102550.0,0.00319062]
[1738136061714,0.17655383,102560.0,102550.0,0.00319062]
[1738136065127,0.33992253,102560.0,102550.0,0.00319062]
[1738136065248,0.43727929,102560.0,102550.0,0.00319062]
[1738136067480,0.33992253,102560.0,102550.0,0.00319062]
[1738136069045,0.43716569,102560.0,102550.0,0.00319062]
[1738136069425,0.33992253,102560.0,102550.0,0.00319062]
[1738136073014,0.25225383,102560.0,102550.0,0.00319062]
[1738136075139,0.33992253,102560.0,102550.0,0.00319062]
[1738136075669,0.33992253,102560.0,102550.0,0.00019062]
[1738136076021,0.34492253,102560.0,102550.0,0.00019062]
[1738136080547,0.44227929,102560.0,102550.0,0.00019062]
[1738136082006,0.34492253,102560.0,102550.0,0.00019062]
[1738136082828,0.34092253,102560.0,102550.0,0.00019062]
[1738136082946,0.33992253,102560.0,102550.0,0.00019062]
[1738136083346,0.34092253,102560.0,102550.0,0.00019062]
[1738136084321,0.34492253,102560.0,102550.0,0.00019062]
[1738136084612,0.31482392,102560.0,102550.0,0.00019062]
[1738136084810,0.41218068,102560.0,102550.0,0.00019062]
[1738136087419,0.31482392,102560.0,102550.0,0.00019062]
[1738136097103,0.4023224,102560.0,102550.0,0.00019062]
[1738136101525,0.3266224,102560.0,102550.0,0.00019062]
[1738136101726,0.26905231,102560.0,102550.0,0.00019062]
[1738136101991,0.3266224,102560.0,102550.0,0.00019062]
[1738136107717,0.42441514,102560.0,102550.0,0.00019062]
[1738136112900,0.57922839,102560.0,102550.0,0.00019062]
[1738136113101,0.5216583,102560.0,102550.0,0.00019062]
[1738136115221,0.57922839,102560.0,102550.0,0.00019062]
[1738136117867,0.90762839,102560.0,102550.0,0.00019062]
[1738136118071,0.82012991,102560.0,102550.0,0.00019062]
[1738136118810,0.97012991,102560.0,102550.0,0.00019062]
[1738136119022,0.85139401,102560.0,102550.0,0.00019062]
[1738136119406,0.94863717,102560.0,102550.0,0.00019062]
[1738136122443,0.71752392,102560.0,102550.0,0.00019062]
[1738136122646,0.65995383,102560.0,102550.0,0.04879062]
[1738136123269,0.50995383,102560.0,102550.0,0.04879062]
[1738136123896,0.03529883,102560.0,102550.0,0.37360378]
[1738136124107,0.00529883,102560.0,102550.0,0.37360378]
[1738136124918,0.00429883,102560.0,102550.0,0.37360378]
[1738136125129,0.08766672,102560.0,102550.0,0.37360378]
[1738136125570,0.08866672,102560.0,102550.0,0.37360378]
[1738136128147,0.08866672,102560.0,102550.0,0.43117387]
[1738136128329,0.08866672,102560.0,102550.0,0.37360378]
[1738136128525,0.08866672,102560.0,102550.0,0.86114378]
[1738136128720,0.08866672,102560.0,102550.0,1.41371387]
[1738136128909,0.08866672,102560.0,102550.0,1.44413171]
[1738136129753,0.08766672,102560.0,102550.0,1.44413171]
[1738136130053,0.00129883,102560.0,102550.0,1.45613171]
[1738136130428,0.00129883,102560.0,102550.0,1.44813171]
[1738136130600,0.00114392,102560.0,102550.0,1.44813171]
[1738136130801,0.00114392,102560.0,102550.0,1.44613171]
[1738136131230,0.00014392,102560.0,102550.0,1.44713171]
[1738136131429,0.00014392,102560.0,102550.0,1.42463387]
[1738136131685,0.00114392,102560.0,102550.0,1.42663387]
[1738136133908,0.00114392,102560.0,102550.0,1.41871387]
[1738136134108,0.00114392,102560.0,102550.0,1.36906378]
[1738136134352,0.00114392,102560.0,102550.0,1.42663387]
[1738136134727,0.00114392,102560.0,102550.0,1.39571387]
[1738136134910,0.00114392,102560.0,102550.0,1.34302378]
[1738136135107,0.00114392,102560.0,102550.0,1.40259387]
[1738136135566,0.00014392,102560.0,102550.0,1.40059387]
[1738136135746,0.00114392,102560.0,102550.0,1.40259387]
[1738136141174,0.00114392,102560.0,102550.0,1.40251387]
[1738136142470,0.00114392,102560.0,102550.0,1.42551387]
[1738136143278,0.00114392,102560.0,102550.0,1.42351387]
[1738136143478,0.00114392,102560.0,102550.0,1.48408396]
[1738136143880,0.00014392,102560.0,102550.0,1.42451387]
[1738136144244,0.00114392,102560.0,102550.0,1.42651387]
[1738136154868,0.00114392,102560.0,102550.0,1.41871387]
[1738136154993,0.00114392,102560.0,102550.0,1.42635387]
[1738136155425,0.00114392,102560.0,102550.0,1.45673146]
[1738136156235,0.00114392,102560.0,102550.0,1.4760239]
[1738136158938,0.00114392,102560.0,102550.0,1.45673146]
[1738136159349,0.00114392,102560.0,102550.0,1.37543146]
[1738136160635,0.07724392,102560.0,102550.0,1.23862137]
[1738136160943,0.28106901,102560.0,102550.0,0.52310821]
[1738136161144,0.22349892,102560.0,102550.0,0.49273062]
[1738136165034,0.22249892,102560.0,102550.0,0.49073062]
[1738136165233,0.22349892,102560.0,102550.0,0.48973062]
[1738136165692,0.22349892,102560.0,102550.0,0.49173062]
[1738136165890,0.22349892,102560.0,102550.0,0.58897378]
[1738136167549,0.07724392,102560.0,102550.0,0.79281387]
[1738136167993,0.00114392,102560.0,102550.0,0.79281387]
[1738136168524,0.14739892,102560.0,102550.0,0.79281387]
[1738136168733,0.14739892,102560.0,102550.0,0.73524378]
[1738136168926,0.14739892,102560.0,102550.0,0.81581387]
[1738136169343,0.14739892,102560.0,102550.0,0.75824378]
[1738136170785,0.14739892,102560.0,102550.0,0.58897378]
[1738136171694,0.14704235,102560.0,102550.0,0.58881887]
[1738136174077,0.22684235,102560.0,102550.0,0.58881887]
[1738136175724,0.22684235,102560.0,102550.0,0.59346291]
[1738136176138,0.27194235,102560.0,102550.0,0.49621975]
[1738136179359,0.12598618,102560.0,102550.0,0.59346291]
[1738136179573,0.00108618,102560.0,102550.0,0.85846358]
[1738136179838,0.00108618,102560.0,102550.0,0.74777291]
[1738136180465,0.00108618,102560.0,102550.0,1.13856358]
[1738136180673,0.00108618,102560.0,102550.0,2.09215425]
[1738136180893,0.00108618,102560.0,102550.0,2.05482975]
[1738136181110,0.00124688,102570.0,102560.0,0.169255]
[1738136181312,0.00029883,102570.0,102560.0,2.50547393]
[1738136181563,0.00029883,102570.0,102560.0,2.4216509]
[1738136181771,0.00029883,102570.0,102560.0,2.45200766]
[1738136182828,0.00129883,102570.0,102560.0,2.45800766]
[1738136184629,0.00129883,102570.0,102560.0,2.4276509]
[1738136186150,0.00129883,102570.0,102560.0,2.7496509]
[1738136190701,0.00129883,102570.0,102560.0,2.30828023]
[1738136190978,0.00129883,102570.0,102560.0,2.4044909]
[1738136191113,0.00129883,102570.0,102560.0,1.59499671]
[1738136194196,0.00129883,102570.0,102560.0,1.10853539]
[1738136196131,0.00129883,102570.0,102560.0,2.09102958]
[1738136201041,0.00129883,102570.0,102560.0,2.41302958]
[1738136201266,0.00124546,102570.0,102560.0,2.41302958]
[1738136202183,0.00124546,102570.0,102560.0,2.95692958]
[1738136202429,0.00124546,102570.0,102560.0,3.07494646]
[1738136202707,0.00124546,102570.0,102560.0,2.97739809]
[1738136203294,0.00124546,102570.0,102560.0,2.94707188]
[1738136203491,0.00124546,102570.0,102560.0,2.94407188]
[1738136203739,0.00124546,102570.0,102560.0,2.94107188]
[1738136204156,0.00124546,102570.0,102560.0,2.93622952]
[1738136205686,0.00124546,102570.0,102560.0,3.18935362]
[1738136206044,0.00124546,102570.0,102560.0,3.10166295]
[1738136207113,0.00124546,102570.0,102560.0,2.33345362]
[1738136209763,0.00124546,102570.0,102560.0,2.35345362]
[1738136210960,4.6e-07,102570.0,102560.0,2.35345362]
[1738136211166,0.00124688,102580.0,102570.0,0.349241]
[1738136211394,0.00029883,102580.0,102570.0,1.74955025]
[1738136212639,8.3e-07,102580.0,102570.0,1.74955025]
[1738136212877,8.3e-07,102580.0,102570.0,1.75255025]
[1738136214047,8.3e-07,102580.0,102570.0,1.75055025]
[1738136214269,0.00100083,102580.0,102570.0,1.73055025]
[1738136214777,0.00100083,102580.0,102570.0,1.72955025]
[1738136215399,0.00100083,102580.0,102570.0,1.74955025]
[1738136215821,0.00100083,102580.0,102570.0,2.60545025]
[1738136216168,8.3e-07,102580.0,102570.0,2.60545025]
[1738136216603,8.3e-07,102580.0,102570.0,2.61507778]
[1738136217479,0.00029883,102600.0,102590.0,0.329213]
[1738136217749,0.00029883,102600.0,102590.0,3.56183624]
[1738136218104,0.00029883,102600.0,102590.0,3.60813624]
[1738136218311,0.1246,102620.0,102600.0,0.01]
[1738136218515,0.1246,102620.0,102610.0,0.50509214]
[1738136218726,0.12474487,102620.0,102610.0,2.55777844]
[1738136219782,0.12574487,102620.0,102610.0,2.56477844]
[1738136220725,0.12574487,102620.0,102610.0,2.48588777]
[1738136221741,0.12574487,102620.0,102610.0,2.80788777]
[1738136222262,0.12574487,102620.0,102610.0,2.80988777]
[1738136223285,0.12574487,102620.0,102610.0,2.80836777]
[1738136224898,0.12574487,102620.0,102610.0,2.89605844]
[1738136225623,0.12604349,102620.0,102610.0,2.89605844]
[1738136228084,0.07864349,102620.0,102610.0,2.89605844]
[1738136228546,0.07864349,102620.0,102610.0,2.93505944]
[1738136228799,0.00144349,102620.0,102610.0,2.93505944]
[1738136231298,0.00144349,102620.0,102610.0,2.93529944]
[1738136238044,0.08184349,102620.0,102610.0,2.32918745]
[1738136238252,0.27731349,102620.0,102610.0,1.20569326]
[1738136238455,0.27731349,102620.0,102610.0,1.19669326]
[1738136238690,0.27731349,102620.0,102610.0,1.20569326]
[1738136242837,0.27731349,102620.0,102610.0,1.20557326]
[1738136245924,0.27731349,102620.0,102610.0,1.20549326]
[1738136249780,0.27731349,102620.0,102610.0,1.20563546]
[1738136252829,0.13114349,102620.0,102610.0,1.20563546]
[1738136253051,0.00144349,102620.0,102610.0,1.31632613]
[1738136253476,0.00144349,102620.0,102610.0,1.39432646]
[1738136254623,0.00144349,102620.0,102610.0,1.54432646]
[1738136262963,0.00144349,102620.0,102610.0,1.55415258]
[1738136264136,0.00144349,102620.0,102610.0,1.56415258]
[1738136268666,0.07999002,102640.0,102630.0,0.146156]
[1738136268871,0.07999002,102640.0,102630.0,0.82808336]
[1738136269771,0.07999002,102640.0,102630.0,1.40215535]
[1738136269974,0.07999002,102640.0,102630.0,1.40315535]
[1738136271610,0.22613102,102640.0,102630.0,1.40315535]
[1738136272677,0.22613102,102640.0,102630.0,1.31546468]
[1738136273138,0.22642964,102640.0,102630.0,0.82908336]
[1738136275415,0.22642964,102640.0,102630.0,0.68292736]
[1738136275673,0.27432964,102640.0,102630.0,0.5856842]
[1738136275938,0.36202031,102640.0,102630.0,0.48819]
[1738136278855,0.28389219,102640.0,102630.0,0.48819]
[1738136279678,0.37158286,102640.0,102630.0,0.48819]
[1738136280202,0.37258286,102640.0,102630.0,0.48819]
[1738136280398,0.37258286,102640.0,102630.0,0.48719]
[1738136280611,0.37358286,102640.0,102630.0,0.48719]
[1738136280997,0.37258286,102640.0,102630.0,0.48719]
[1738136281602,0.37458286,102640.0,102630.0,0.48719]
[1738136281783,0.28689219,102640.0,102630.0,0.48719]
[1738136284621,0.28689219,102640.0,102630.0,0.4873322]
[1738136288460,0.28489219,102640.0,102630.0,0.4873322]
[1738136288636,0.28489219,102640.0,102630.0,0.4883322]
[1738136288941,0.37258286,102640.0,102630.0,0.4883322]
[1738136289140,0.37158286,102640.0,102630.0,0.4883322]
[1738136289487,0.37258286,102640.0,102630.0,0.4883322]
[1738136289885,0.37158286,102640.0,102630.0,0.4873322]
[1738136290085,0.37258286,102640.0,102630.0,0.4873322]
[1738136290336,0.37458286,102640.0,102630.0,0.4873322]
[1738136294387,0.47193962,102640.0,102630.0,0.4873322]
[1738136294604,1.04758278,102640.0,102630.0,0.4873322]
[1738136295740,1.06722657,102640.0,102630.0,0.4873322]
[1738136298525,0.87262665,102640.0,102630.0,0.4873322]
[1738136304014,0.96986981,102640.0,102630.0,0.4873322]
[1738136305125,0.96686981,102640.0,102630.0,0.4873322]
[1738136305504,0.96586981,102640.0,102630.0,0.4873322]
[1738136305712,0.96886981,102640.0,102630.0,0.4873322]
[1738136305937,0.96686981,102640.0,102630.0,0.4873322]
[1738136306342,0.97186981,102640.0,102630.0,0.4883322]
[1738136306544,0.96686981,102640.0,102630.0,0.4873322]
[1738136306791,0.97486981,102640.0,102630.0,0.4883322]
[1738136308219,0.87762665,102640.0,102630.0,0.4883322]
[1738136309032,1.07222657,102640.0,102630.0,0.4883322]
[1738136313558,0.97486981,102640.0,102630.0,0.4883322]
[1738136314242,0.87762665,102640.0,102630.0,0.4883322]
[1738136320592,0.90490378,102640.0,102630.0,0.4883322]
[1738136320930,0.84741988,102640.0,102630.0,0.4883322]
[1738136325889,0.69741988,102640.0,102630.0,0.4883322]
[1738136328907,0.49540217,102640.0,102630.0,0.4883322]
[1738136330130,0.49540217,102640.0,102630.0,0.4873322]
[1738136330131,0.48740217,102640.0,102630.0,0.4873322]
[1738136330484,0.49240217,102640.0,102630.0,0.4873322]
[1738136330723,0.48940217,102640.0,102630.0,0.4873322]
[1738136332155,0.49240217,102640.0,102630.0,0.4873322]
[1738136333160,0.48940217,102640.0,102630.0,0.4873322]
[1738136333594,0.49140217,102640.0,102630.0,0.4873322]
[1738136334643,0.48183962,102640.0,102630.0,0.4873322]
[1738136337266,0.53932352,102640.0,102630.0,0.4873322]
[1738136337482,0.61742352,102640.0,102630.0,0.4873322]
[1738136343506,0.55993962,102640.0,102630.0,0.4873322]
[1738136343760,0.61742352,102640.0,102630.0,0.4873322]
[1738136343968,0.55993962,102640.0,102630.0,0.4873322]
[1738136344321,0.61742352,102640.0,102630.0,0.4873322]
[1738136344930,0.55993962,102640.0,102630.0,0.4873322]
[1738136345051,0.61742352,102640.0,102630.0,0.4873322]
[1738136352184,0.55993962,102640.0,102630.0,0.4873322]
[1738136352588,0.15343962,102640.0,102630.0,0.58457536]
[1738136354561,0.15343962,102640.0,102630.0,0.4873322]
[1738136358508,0.15343962,102640.0,102630.0,0.58457536]
[1738136358754,0.00729862,102640.0,102630.0,0.91641526]
[1738136358989,0.15343962,102640.0,102630.0,1.01391876]
[1738136359436,0.00729862,102640.0,102630.0,1.01391876]
[1738136359807,0.00229862,102640.0,102630.0,1.01391876]
[1738136360047,0.15043962,102640.0,102630.0,1.01391876]
[1738136360197,0.00429862,102640.0,102630.0,1.01391876]
[1738136360426,0.15043962,102640.0,102630.0,1.01391876]
[1738136360660,0.15043962,102640.0,102630.0,1.04396978]
[1738136361122,0.14843962,102640.0,102630.0,1.04396978]
[1738136361455,0.15043962,102640.0,102630.0,1.04396978]
[1738136361936,0.14843962,102640.0,102630.0,0.95643486]
[1738136362152,0.14943962,102640.0,102630.0,0.81027886]
[1738136363882,0.14743962,102640.0,102630.0,0.81027886]
[1738136364192,0.14643962,102640.0,102630.0,0.81127886]
[1738136364797,0.14643962,102640.0,102630.0,0.95743486]
[1738136364992,0.14643962,102640.0,102630.0,1.04496978]
[1738136366822,0.14643962,102640.0,102630.0,0.95743486]
[1738136372789,0.14643962,102640.0,102630.0,0.87853486]
[1738136374412,0.14643962,102640.0,102630.0,0.73237886]
[1738136379381,0.14643962,102640.0,102630.0,0.87853486]
[1738136380606,0.14643962,102640.0,102630.0,0.93598202]
[1738136381910,0.14643962,102640.0,102630.0,0.78982602]
[1738136383128,0.14643962,102640.0,102630.0,0.73237886]
[1738136387362,0.14643962,102640.0,102630.0,0.68307886]
[1738136392327,0.14643962,102640.0,102630.0,0.69115886]
[1738136394036,0.22793962,102640.0,102630.0,0.68307886]
[1738136394986,0.22793962,102640.0,102630.0,0.5858357]
[1738136395223,0.28538678,102640.0,102630.0,0.4883322]
[1738136395359,0.71566627,102640.0,102630.0,0.4883322]
[1738136395602,0.66088678,102640.0,102630.0,0.4883322]
[1738136395989,0.60343962,102640.0,102630.0,0.4883322]
[1738136397099,0.6132983,102640.0,102630.0,0.4883322]
[1738136399998,0.6132983,102640.0,102630.0,0.4873322]
[1738136400316,0.6152983,102640.0,102630.0,0.4873322]
[1738136400753,0.67274546,102640.0,102630.0,0.4873322]
[1738136401278,0.67374546,102640.0,102630.0,0.4873322]
[1738136404629,0.6162983,102640.0,102630.0,0.4873322]
[1738136408655,0.67374546,102640.0,102630.0,0.4873322]